bitfinex/quotes_ETHUSD_20241006
["timestamp","ask_amount","ask_price","bid_price","bid_amount"]
[1728247523873,0.7998,2442.5,2442.4,2.57782861]
[1728247524291,0.84966857,2442.5,2442.4,2.57782861]
[1728247524509,0.84966857,2442.5,2442.3,2.57782861]
[1728247524818,0.7998,2442.4,2442.3,2.57782861]
[1728247525170,0.84945978,2442.4,2442.3,2.57782861]
[1728247525512,0.84945978,2442.4,2442.2,2.57782861]
[1728247525941,0.7998,2442.3,2442.1,2.57782861]
[1728247526310,0.04962121,2442.2,2442.0,2.57782861]
[1728247526507,0.7998,2442.1,2442.0,2.57782861]
[1728247526677,0.7998,2442.1,2442.0,7.41548946]
[1728247526881,0.84909179,2442.1,2442.0,7.41548946]
[1728247527095,0.7998,2442.1,2442.0,7.41314996]
[1728247527986,0.7998,2442.1,2442.0,4.13714996]
[1728247528393,0.84915433,2442.1,2442.0,4.13714996]
[1728247528599,0.84915433,2442.1,2442.0,7.41314996]
[1728247528785,0.84915433,2442.1,2442.0,4.83766085]
[1728247528980,0.7998,2442.1,2442.0,4.83766085]
[1728247531896,0.84915433,2442.1,2442.0,4.83766085]
[1728247532392,0.84915433,2442.1,2442.0,1.56166085]
[1728247533123,0.84915433,2442.1,2442.0,4.83766085]
[1728247533295,0.7998,2442.1,2442.0,6.98039641]
[1728247533881,0.7998,2442.1,2442.0,4.83766085]
[1728247534192,0.7998,2442.1,2442.0,6.98035939]
[1728247534399,0.84915433,2442.1,2442.0,6.98035939]
[1728247534905,0.7998,2442.1,2442.0,6.98035939]
[1728247535926,0.84915433,2442.1,2442.0,6.98035939]
[1728247537628,0.84915433,2442.1,2442.0,4.83766085]
[1728247537824,0.84915433,2442.1,2442.0,6.97949631]
[1728247538010,0.84915433,2442.1,2442.0,3.70349631]
[1728247540536,0.84915433,2442.1,2442.0,1.56166085]
[1728247540969,0.84915433,2442.1,2442.0,3.2749437]
[1728247541238,0.84915433,2442.1,2442.0,1.56166085]
[1728247542527,0.84915433,2442.1,2442.0,3.27490387]
[1728247542692,0.84915433,2442.1,2442.0,1.56166085]
[1728247542893,0.84915433,2442.1,2442.0,3.2749048]
[1728247543106,0.84915433,2442.1,2442.0,1.56166085]
[1728247544017,0.84915433,2442.1,2442.0,3.27492198]
[1728247544202,0.84915433,2442.1,2442.0,1.7133133]
[1728247544505,1.58919676,2442.1,2442.0,1.7133133]
[1728247544925,0.7766,2442.0,2441.9,1.7133133]
[1728247545516,0.82397521,2442.0,2441.9,1.7133133]
[1728247547193,0.82397521,2442.0,2441.9,2.14155494]
[1728247547700,0.82397521,2442.0,2441.9,2.14167406]
[1728247548034,0.82397521,2442.0,2441.8,6.97959491]
[1728247548236,0.82397521,2442.0,2441.9,1.71337406]
[1728247549200,0.82397521,2442.0,2441.9,4.98950406]
[1728247549400,0.82397521,2442.0,2441.9,4.98964585]
[1728247549624,0.82397521,2442.0,2441.9,5.41780406]
[1728247550613,0.04737521,2442.0,2441.9,5.41780406]
[1728247551149,0.7591,2442.2,2441.9,5.41780406]
[1728247551441,0.7591,2442.2,2442.0,1.71371534]
[1728247551650,0.04754923,2442.1,2442.0,1.71371534]
[1728247552438,0.04754923,2442.1,2442.0,3.27537619]
[1728247552612,0.04754923,2442.1,2442.0,6.55137619]
[1728247553720,0.04754923,2442.1,2442.0,4.83766085]
[1728247554117,0.04754923,2442.1,2442.0,6.55157788]
[1728247554315,0.04754923,2442.1,2442.0,3.70390516]
[1728247554632,0.04754923,2442.1,2442.0,1.56166085]
[1728247554845,0.04754923,2442.1,2442.0,3.70390516]
[1728247555045,0.04754923,2442.1,2442.0,1.56166085]
[1728247555221,0.04754923,2442.1,2442.0,3.70390516]
[1728247555546,0.04754923,2442.1,2442.0,3.27592484]
[1728247557051,0.04754923,2442.1,2442.0,1.71426399]
[1728247557929,0.45577615,2442.1,2442.0,1.71426399]
[1728247558319,0.45577615,2442.1,2441.9,2.14342236]
[1728247559137,0.04754923,2442.1,2442.0,2.14342236]
[1728247561375,0.04754923,2442.1,2441.9,5.70591551]
[1728247561583,0.04754923,2442.1,2441.9,5.62402085]
[1728247561781,0.04754923,2442.1,2441.9,5.70591563]
[1728247562385,0.7906,2442.4,2442.0,2.14513043]
[1728247562676,0.7906,2442.4,2442.2,1.71661175]
[1728247562677,4.85799615,2442.4,2442.2,1.71661175]
[1728247563981,8.13346615,2442.4,2442.2,1.71661175]
[1728247564351,8.13346615,2442.4,2442.3,1.71661175]
[1728247564554,0.7906,2442.6,2442.3,3.2782726]
[1728247564762,0.7906,2442.6,2442.4,1.71661175]
[1728247565348,0.7906,2442.6,2442.5,1.71661175]
[1728247566073,3.7906,2442.6,2442.5,1.71661175]
[1728247566272,3.7906,2442.6,2442.4,1.71661175]
[1728247566452,3.7906,2442.6,2442.5,1.71661175]
[1728247567092,3.7906,2442.6,2442.4,1.71661175]
[1728247567295,3.7906,2442.6,2442.5,1.71661175]
[1728247568155,3.8391763,2442.6,2442.5,1.71661175]
[1728247569271,3.8391763,2442.6,2442.4,2.14789122]
[1728247569473,3.8391763,2442.6,2442.5,1.71982401]
[1728247569694,3.8391763,2442.6,2442.5,1.71982391]
[1728247570262,3.8391763,2442.6,2442.5,2.14789122]
[1728247571455,3.8391763,2442.6,2442.5,2.15041933]
[1728247572693,7.1143663,2442.6,2442.5,2.15041933]
[1728247574557,3.8391763,2442.6,2442.5,2.15041933]
[1728247574816,0.0485763,2442.6,2442.5,2.15041933]
[1728247575011,0.0485763,2442.6,2442.5,2.19091919]
[1728247575163,3.36128,2442.9,2442.5,2.97421919]
[1728247575362,6.63615,2442.9,2442.7,1.72011872]
[1728247575559,3.36127,2442.9,2442.8,1.72011872]
[1728247576010,6.36127,2442.9,2442.8,1.72011872]
[1728247577278,3.0,2442.8,2442.7,1.72011872]
[1728247579310,0.0864,2442.9,2442.7,3.71149701]
[1728247579513,0.0864,2442.9,2442.8,1.71935988]
[1728247579703,0.0864,2442.9,2442.7,4.48850671]
[1728247580323,0.0864,2442.9,2442.8,1.7190668]
[1728247583245,0.13543641,2442.9,2442.8,1.7190668]
[1728247590072,0.13543641,2442.9,2442.8,3.28072765]
[1728247591793,0.13543641,2442.9,2442.8,1.7190668]
[1728247592568,0.13543641,2442.9,2442.8,4.07262765]
[1728247594499,0.13543641,2442.9,2442.8,2.5109668]
[1728247596664,0.13543641,2442.9,2442.8,1.7190668]
[1728247597692,0.13543641,2442.9,2442.7,1.7190668]
[1728247597894,4.16259641,2442.9,2442.7,1.7190668]
[1728247598102,4.02736,2442.7,2442.5,1.7190668]
[1728247598290,3.27519,2442.6,2442.5,1.7190668]
[1728247598494,3.79845067,2442.6,2442.4,1.7190668]
[1728247598703,3.27533,2442.5,2442.4,1.7190668]
[1728247598895,3.32135052,2442.5,2442.4,1.7190668]
[1728247600494,7.35622157,2442.5,2442.4,1.7190668]
[1728247604936,1.08089157,2442.5,2442.4,1.7190668]
[1728247605120,0.04602052,2442.5,2442.3,2.1468494]
[1728247605630,0.04602052,2442.5,2442.4,1.71780582]
[1728247605832,0.04602052,2442.5,2442.4,2.9325494]
[1728247606338,0.04532821,2442.5,2442.4,2.9325494]
[1728247606537,0.8651,2442.9,2442.5,3.27532]
[1728247606703,0.04528787,2442.8,2442.7,1.71764763]
[1728247611325,0.04528787,2442.8,2442.7,2.92985954]
[1728247611532,0.0864,2442.9,2442.7,2.92985954]
[1728247611844,0.0864,2442.9,2442.8,1.71808833]
[1728247613111,0.13188605,2442.9,2442.8,1.71805224]
[1728247613415,0.13188605,2442.9,2442.8,3.96286456]
[1728247613612,0.13188605,2442.9,2442.8,4.3923623]
[1728247616110,0.13188605,2442.9,2442.8,4.3423623]
[1728247616615,0.13188605,2442.9,2442.8,1.56166085]
[1728247616839,0.13188605,2442.9,2442.8,3.70941468]
[1728247620440,0.13188605,2442.9,2442.6,4.75975238]
[1728247620645,0.13188605,2442.9,2442.8,2.14803258]
[1728247620813,0.13188605,2442.9,2442.8,2.14810479]
[1728247625356,0.13188605,2442.9,2442.8,2.14758528]
[1728247630556,0.13188605,2442.9,2442.8,2.14715122]
[1728247633380,0.13188605,2442.9,2442.8,1.71757751]
[1728247639158,0.13188605,2442.9,2442.8,1.71745468]
[1728247642554,0.13188605,2442.9,2442.7,2.69708164]
[1728247642762,0.13188605,2442.9,2442.8,1.71741254]
[1728247645763,0.13188605,2442.9,2442.7,2.69708164]
[1728247646702,0.13188605,2442.9,2442.8,2.14708164]
[1728247646870,0.13188605,2442.9,2442.7,2.69708164]
[1728247647074,0.13188605,2442.9,2442.8,1.71758055]
[1728247647282,0.13188605,2442.9,2442.7,2.69708164]
[1728247647490,0.13188605,2442.9,2442.8,2.14730148]
[1728247648363,0.13188605,2442.9,2442.8,1.71803779]
[1728247649196,0.13188605,2442.9,2442.7,2.69730148]
[1728247649903,0.13188605,2442.9,2442.8,2.14730148]
[1728247650868,0.13188605,2442.9,2442.8,2.14834845]
[1728247656106,0.13188605,2442.9,2442.8,2.14936566]
[1728247657206,0.13188605,2442.9,2442.8,2.14942659]
[1728247657403,0.13188605,2442.9,2442.8,2.14949426]
[1728247658178,0.13188605,2442.9,2442.8,2.14949473]
[1728247658385,3.40667605,2442.9,2442.8,2.14949473]
[1728247660111,3.40667605,2442.9,2442.8,1.71964005]
[1728247661391,4.15462166,2442.9,2442.8,1.71964005]
[1728247661588,7.15462166,2442.9,2442.8,1.71964005]
[1728247661788,0.821,2442.7,2442.6,1.71964005]
[1728247662010,4.13738001,2442.7,2442.6,1.71964005]
[1728247662201,4.13738001,2442.7,2442.5,1.71964005]
[1728247662202,3.27519,2442.6,2442.5,1.71964005]
[1728247662672,3.31625268,2442.6,2442.5,1.7196737]
[1728247662878,4.35747095,2442.6,2442.5,1.7196737]
[1728247663480,4.35747095,2442.6,2442.4,1.7196737]
[1728247663481,3.27533,2442.5,2442.4,1.7196737]
[1728247663689,6.27533,2442.5,2442.4,1.7196737]
[1728247664023,6.27546,2442.4,2442.3,2.50327315]
[1728247664317,3.27586,2442.1,2442.0,1.71906181]
[1728247664476,4.09686,2442.1,2442.0,1.71906181]
[1728247664675,4.13768626,2442.1,2442.0,1.71906181]
[1728247665798,4.13768626,2442.1,2441.9,1.71906181]
[1728247666507,0.86182626,2442.1,2441.9,1.71906181]
[1728247666814,0.04082626,2442.1,2441.9,3.28072266]
[1728247667191,0.04082626,2442.1,2442.0,0.8108]
[1728247667388,3.0,2442.5,2442.1,0.55]
[1728247667713,0.03946676,2442.4,2442.3,0.8108]
[1728247668016,3.27527,2442.6,2442.3,0.8108]
[1728247668229,0.03959693,2442.5,2442.3,0.8108]
[1728247670612,3.8199,2442.7,2442.3,0.8108]
[1728247670793,0.03985427,2442.6,2442.3,0.8108]
[1728247674217,3.31505427,2442.6,2442.3,0.8108]
[1728247675635,6.59032427,2442.6,2442.3,0.8108]
[1728247676622,3.27535,2442.5,2442.3,0.8108]
[1728247676782,0.03959395,2442.4,2442.3,0.8108]
[1728247677390,3.31505395,2442.4,2442.3,0.8108]
[1728247677628,3.31505395,2442.4,2442.2,1.56166085]
[1728247678411,6.59061395,2442.4,2442.2,1.56166085]
[1728247678609,6.59061395,2442.4,2442.1,1.3579]
[1728247679026,3.27581,2442.2,2442.0,1.71906181]
[1728247679187,3.27581,2442.2,2441.9,2.52696181]
[1728247679188,3.315265,2442.1,2441.9,2.52696181]
[1728247679708,3.276,2442.0,2441.9,2.52696181]
[1728247680007,3.31527868,2442.0,2441.9,2.52696181]
[1728247680710,3.27613,2441.9,2441.8,1.71906181]
[1728247681031,3.27627,2441.8,2441.7,1.71906181]
[1728247681239,3.31534867,2441.8,2441.6,1.71906181]
[1728247681400,3.2764,2441.7,2441.6,1.71906181]
[1728247681737,3.2764,2441.7,2441.4,1.71906181]
[1728247681738,3.27667,2441.5,2441.4,1.71906181]
[1728247681937,3.27667,2441.5,2441.4,1.61906181]
[1728247682223,3.31535795,2441.5,2441.4,1.61906181]
[1728247682615,3.31535795,2441.5,2441.3,2.36956085]
[1728247682811,3.2768,2441.4,2441.3,2.36956085]
[1728247682988,3.31523046,2441.4,2441.3,2.11956085]
[1728247683194,3.2768,2441.4,2441.3,2.11956085]
[1728247683433,3.31523046,2441.4,2441.3,2.11956085]
[1728247683836,6.55317,2441.6,2441.3,2.11956085]
[1728247683993,0.03859253,2441.5,2441.3,2.11956085]
[1728247693825,0.03859253,2441.5,2441.3,0.8079]
[1728247693826,3.2768,2441.4,2441.3,0.8079]
[1728247694030,0.03785513,2441.4,2441.2,2.11166085]
[1728247694349,3.31467513,2441.4,2441.2,2.11166085]
[1728247696208,0.03785513,2441.4,2441.2,2.11166085]
[1728247698424,0.03785513,2441.4,2441.2,1.56166085]
[1728247698636,0.86595513,2441.4,2441.2,1.56166085]
[1728247699114,0.03785513,2441.4,2441.2,3.27444083]
[1728247699314,0.03785513,2441.4,2441.2,1.56166085]
[1728247700545,0.03785513,2441.4,2441.2,3.27444083]
[1728247703921,0.03785513,2441.4,2441.3,1.71277998]
[1728247704420,0.03785513,2441.4,2441.3,3.27444083]
[1728247705618,0.03785513,2441.4,2441.3,1.71277998]
[1728247708522,0.03785513,2441.4,2441.3,1.71570218]
[1728247709245,0.03785513,2441.4,2441.3,2.14435789]
[1728247709637,0.03785513,2441.4,2441.3,1.71596684]
[1728247710145,0.03785513,2441.4,2441.2,3.70601874]
[1728247710871,3.882204,2441.5,2441.2,3.70601874]
[1728247711034,3.882204,2441.5,2441.4,1.71601518]
[1728247711230,4.6808874,2441.5,2441.4,1.71601518]
[1728247713379,1.4041374,2441.5,2441.4,1.71601518]
[1728247715168,0.605454,2441.5,2441.4,3.27767603]
[1728247715333,0.605454,2441.5,2441.4,1.56166085]
[1728247715534,0.605454,2441.5,2441.4,3.70681999]
[1728247715735,0.605454,2441.5,2441.4,1.56166085]
[1728247716036,0.605454,2441.5,2441.4,3.70681999]
[1728247716655,0.605454,2441.5,2441.4,8.33861999]
[1728247716854,0.605454,2441.5,2441.4,9.75758609]
[1728247717080,0.605454,2441.5,2441.4,6.48078609]
[1728247718341,0.605454,2441.5,2441.4,5.06181999]
[1728247720262,0.605454,2441.5,2441.4,2.91666085]
[1728247721358,0.605454,2441.5,2441.4,6.19346085]
[1728247723465,0.605454,2441.5,2441.4,8.76765182]
[1728247724848,0.605454,2441.5,2441.4,8.77382589]
[1728247725180,0.605454,2441.5,2441.4,6.19346085]
[1728247729781,0.605454,2441.5,2441.4,2.91666085]
[1728247739289,0.605454,2441.5,2441.4,6.19346085]
[1728247740103,0.605454,2441.5,2441.4,7.52360871]
[1728247740328,0.605454,2441.5,2441.4,10.5352472]
[1728247740475,0.605454,2441.5,2441.4,7.44169774]
[1728247742473,0.605454,2441.5,2441.4,11.08109438]
[1728247742811,3.27528,2442.6,2441.4,4.16489774]
[1728247743007,0.7951,2442.5,2442.4,3.28144472]
[1728247743482,0.7951,2442.5,2442.3,2.1496512]
[1728247743687,4.20945243,2442.5,2442.3,1.71868947]
[1728247743890,4.49010435,2442.4,2442.3,1.71868947]
[1728247744206,5.26664779,2442.4,2442.3,1.71868947]
[1728247744718,4.0707,2442.3,2442.2,1.71868947]
[1728247745608,4.0707,2442.3,2442.1,1.71868947]
[1728247745811,0.7951,2442.3,2442.2,1.71868947]
[1728247746115,1.94932478,2442.3,2442.2,1.71868947]
[1728247746678,1.94932478,2442.3,2442.1,1.71868947]
[1728247749428,0.7951,2442.3,2442.1,1.71868947]
[1728247751604,4.0707,2442.3,2442.1,1.71868947]
[1728247751817,4.0707,2442.3,2442.0,1.71868947]
[1728247752606,0.7951,2442.3,2442.1,1.71868947]
[1728247753000,0.7951,2442.3,2442.0,1.71868947]
[1728247767545,0.7951,2442.3,2442.1,1.71868947]
[1728247777031,1.502156,2442.3,2442.1,1.71868947]
[1728247777348,4.03133,2442.2,2442.1,1.71868947]
[1728247779166,7.03133,2442.2,2442.1,1.71868947]
[1728247783519,7.03133,2442.2,2442.1,2.14672253]
[1728247784394,7.03133,2442.2,2442.1,2.14976351]
[1728247784621,8.1327286,2442.2,2442.1,2.14976351]
[1728247789526,3.27595,2442.1,2441.8,2.58151135]
[1728247789730,6.27595,2442.1,2442.0,2.1515384]
[1728247789889,3.8599009,2442.1,2441.8,2.58151135]
[1728247790090,3.8599009,2442.1,2442.0,2.1515437]
[1728247790395,7.1358009,2442.1,2441.8,2.58151135]
[1728247790717,7.1358009,2442.1,2442.0,2.15142179]
[1728247791294,7.1357609,2442.1,2442.0,2.15142179]
[1728247793604,3.276,2442.0,2441.9,2.15142179]
[1728247793802,4.39273609,2442.0,2441.9,2.15142179]
[1728247794399,4.39273609,2442.0,2441.5,3.83161834]
[1728247794607,4.0514,2442.0,2441.9,2.15087447]
[1728247799613,4.0514,2442.0,2441.9,2.15025327]
[1728247803433,6.27586,2442.1,2441.8,0.8106]
[1728247803642,9.55184,2442.1,2442.0,2.149885]
[1728247804381,3.276,2442.0,2441.9,2.149885]
[1728247806636,8.140656,2442.0,2441.9,2.149885]
[1728247806961,6.27613,2441.9,2441.8,2.149885]
[1728247808131,6.27613,2441.9,2441.8,2.14991534]
[1728247811477,3.27627,2441.8,2441.7,2.14991534]
[1728247811707,3.27627,2441.8,2441.5,2.57989841]
[1728247812205,3.27627,2441.8,2441.7,2.14947179]
[1728247812409,3.27627,2441.8,2441.5,2.57989841]
[1728247812567,3.27627,2441.8,2441.7,2.14947728]
[1728247813103,3.27627,2441.8,2441.5,2.57989841]
[1728247813314,3.27627,2441.8,2441.7,2.14948541]
[1728247813607,4.4179756,2441.8,2441.7,2.14948541]
[1728247815418,3.27627,2441.8,2441.7,2.14948541]
[1728247818221,3.27627,2441.8,2441.7,2.14941414]
[1728247823435,3.27627,2441.8,2441.7,2.14956207]
[1728247826240,3.27653,2441.6,2441.5,2.57947448]
[1728247826426,3.2768,2441.4,2441.3,2.57947448]
[1728247826953,3.27694,2441.3,2441.2,2.57947448]
[1728247827325,3.2768,2441.4,2441.2,2.57947448]
[1728247828155,6.55373,2441.4,2441.2,2.57971161]
[1728247828718,1.0,2441.3,2441.2,2.57971161]
[1728247832250,1.08027285,2441.3,2441.2,2.57971161]
[1728247832458,5.14341285,2441.3,2441.2,2.57971161]
[1728247832638,4.35721285,2441.3,2441.1,2.70157791]
[1728247832817,1.08027285,2441.3,2441.1,2.70157791]
[1728247833421,1.08027285,2441.3,2441.1,2.70046901]
[1728247834133,7.06327,2441.2,2441.1,0.1218663]
[1728247834343,7.1428686,2441.2,2441.1,1.84095078]
[1728247834535,7.1428686,2441.2,2441.1,0.1218663]
[1728247835457,7.70143538,2441.2,2441.1,0.1218663]
[1728247835622,8.53958861,2441.2,2441.1,0.1218663]
[1728247836853,0.0795986,2441.2,2441.1,0.1218663]
[1728247837354,1.0,2441.3,2441.1,4.16061163]
[1728247837554,0.07950925,2441.2,2441.1,4.16061163]
[1728247837760,1.0,2441.3,2441.1,4.16061163]
[1728247837925,0.07682012,2441.2,2441.1,4.16061163]
[1728247838129,1.0,2441.3,2441.1,5.11926561]
[1728247838343,1.0,2441.3,2441.2,1.71908448]
[1728247839353,1.0,2441.3,2441.2,4.99615448]
[1728247839556,1.0,2441.3,2441.2,5.42374256]
[1728247839741,1.0,2441.5,2441.2,5.42374256]
[1728247839922,1.0,2441.5,2441.3,2.92717999]
[1728247843863,3.0,2441.6,2441.3,1.71706762]
[1728247853150,0.0749955,2441.5,2441.3,1.71706762]
[1728247854582,0.0749955,2441.5,2441.4,1.71706762]
[1728247857452,0.0749955,2441.5,2441.4,2.50216762]
[1728247857654,0.0749955,2441.5,2441.4,0.7851]
[1728247857856,3.0,2441.8,2441.4,5.77992651]
[1728247858055,0.07458232,2441.5,2441.4,5.77992651]
[1728247858287,3.0,2441.8,2441.4,5.77992651]
[1728247858462,0.07478229,2441.5,2441.4,5.77992651]
[1728247858661,3.0,2441.8,2441.4,5.77992651]
[1728247858861,0.07488228,2441.5,2441.4,5.77992651]
[1728247859089,3.0,2441.8,2441.4,5.77992651]
[1728247859286,0.07494491,2441.5,2441.4,5.77992651]
[1728247859495,3.0,2441.8,2441.4,5.77992651]
[1728247859785,4.700242,2441.7,2441.4,5.77992651]
[1728247860087,0.07507313,2441.6,2441.4,5.77992651]
[1728247860284,0.07507313,2441.6,2441.4,2.50312651]
[1728247860721,3.07507313,2441.6,2441.4,1.71802651]
[1728247867123,3.07507313,2441.6,2441.5,1.71802651]
[1728247867311,3.79027244,2441.6,2441.4,1.71802651]
[1728247867509,3.79027244,2441.6,2441.5,1.71802651]
[1728247868039,3.79027244,2441.6,2441.4,1.71802651]
[1728247868212,3.79027244,2441.6,2441.5,1.71802651]
[1728247870741,7.06680244,2441.6,2441.5,1.71802651]
[1728247870895,7.06680244,2441.6,2441.4,1.71802651]
[1728247871221,4.39104224,2441.5,2441.4,1.71802651]
[1728247871428,5.23816492,2441.5,2441.4,1.71802651]
[1728247872001,8.23816492,2441.5,2441.4,1.71802651]
[1728247872735,8.23816492,2441.5,2441.3,1.71802651]
[1728247872736,3.2768,2441.4,2441.3,1.71802651]
[1728247872935,6.2768,2441.4,2441.3,1.71802651]
[1728247873253,7.80316293,2441.4,2441.3,1.71802651]
[1728247875336,8.58506293,2441.4,2441.3,1.71802651]
[1728247876358,5.30826293,2441.4,2441.3,1.71802651]
[1728247876519,8.58506293,2441.4,2441.3,1.71802651]
[1728247878258,5.58506293,2441.4,2441.3,1.71802651]
[1728247878419,2.30826293,2441.4,2441.3,1.71802651]
[1728247878620,0.85676644,2441.4,2441.3,1.71802651]
[1728247878845,0.07486644,2441.4,2441.3,1.71802651]
[1728247879051,0.07486644,2441.4,2441.3,3.71198439]
[1728247879238,3.27647,2441.7,2441.3,3.71198439]
[1728247879571,3.27647,2441.7,2441.4,1.72009694]
[1728247880327,4.310299,2441.7,2441.5,1.72009694]
[1728247880661,2.1362,2441.6,2441.5,1.72009694]
[1728247883165,2.20877841,2441.6,2441.5,1.72009694]
[1728247884155,2.20877841,2441.6,2441.5,1.71922551]
[1728247885054,3.34910841,2441.6,2441.5,1.71922551]
[1728247885377,11.57484415,2441.6,2441.5,1.71922551]
[1728247887936,12.38024415,2441.6,2441.5,1.71922551]
[1728247888138,3.2768,2441.4,2441.1,2.70355511]
[1728247888441,0.07219371,2441.3,2441.1,2.70355511]
[1728247892174,3.27676,2441.5,2441.1,2.70355511]
[1728247892479,4.35663606,2441.5,2441.4,2.15137811]
[1728247893281,3.2768,2441.4,2441.1,2.70353842]
[1728247893686,3.2768,2441.4,2441.3,2.15139545]
[1728247896384,3.2768,2441.4,2441.1,2.70353842]
[1728247896596,3.2768,2441.4,2441.3,2.15139148]
[1728247897490,3.2768,2441.4,2441.3,2.15138194]
[1728247898048,3.34640192,2441.4,2441.3,2.15138194]
[1728247898249,4.19723072,2441.4,2441.3,2.15138194]
[1728247902591,4.19723072,2441.4,2441.3,2.1514139]
[1728247903480,4.19723072,2441.4,2441.1,2.70356298]
[1728247903681,3.34640192,2441.4,2441.3,2.1514488]
[1728247903887,3.34640192,2441.4,2441.1,2.70356298]
[1728247904256,3.34640192,2441.4,2441.3,2.15149705]
[1728247906290,3.34640192,2441.4,2441.1,2.70376252]
[1728247906492,3.34640192,2441.4,2441.3,2.15159808]
[1728247906990,3.34640192,2441.4,2441.1,2.70376252]
[1728247907480,3.34640192,2441.4,2441.3,2.15167399]
[1728247907684,3.34640192,2441.4,2441.3,2.15166422]
[1728247907685,4.08924311,2441.4,2441.3,2.15166422]
[1728247909793,4.08924311,2441.4,2441.1,2.70386337]
[1728247909951,6.62331192,2441.4,2441.3,2.15173943]
[1728247910383,6.62331192,2441.4,2441.1,2.70386337]
[1728247910891,6.62331192,2441.4,2441.3,2.15177108]
[1728247911395,6.62331192,2441.4,2441.1,2.70386337]
[1728247911593,6.62331192,2441.4,2441.3,2.15185537]
[1728247911783,7.36618311,2441.4,2441.3,2.15185537]
[1728247912757,4.08927311,2441.4,2441.3,2.15192366]
[1728247913869,4.08927311,2441.4,2441.1,2.70417469]
[1728247914070,3.27695,2441.3,2441.1,2.70417469]
[1728247914302,3.3407925,2441.3,2441.1,2.70417469]
[1728247917602,3.3407925,2441.3,2441.2,2.58230839]
[1728247917934,3.3407925,2441.3,2441.2,2.58269306]
[1728247918345,3.3407925,2441.3,2441.1,2.70455936]
[1728247919142,0.0638425,2441.3,2441.1,2.70455936]
[1728247919439,3.27668,2441.5,2441.1,2.70455936]
[1728247919608,3.27668,2441.5,2441.4,2.15225792]
[1728247919808,4.27399498,2441.5,2441.4,2.15225792]
[1728247921316,4.27399498,2441.5,2441.4,2.15233139]
[1728247922241,3.27668,2441.5,2441.4,2.15233139]
[1728247922455,0.8245,2441.6,2441.4,2.15233139]
[1728247922664,3.0,2441.8,2441.5,2.15233139]
[1728247922957,6.2764,2441.7,2441.6,1.72177482]
[1728247923622,6.2764,2441.7,2441.5,2.15233139]
[1728247924290,3.0,2441.8,2441.6,1.72159661]
[1728247924468,3.0,2441.8,2441.7,1.72162721]
[1728247924768,6.27627,2441.8,2441.7,1.72162721]
[1728247925256,6.27627,2441.8,2441.6,1.72162721]
[1728247925463,6.27627,2441.8,2441.7,1.72162721]
[1728247926449,6.27627,2441.8,2441.6,1.72162721]
[1728247927163,6.27627,2441.8,2441.7,1.72162721]
[1728247927353,6.27627,2441.8,2441.6,1.72162721]
[1728247928269,0.06209284,2441.7,2441.6,1.72162721]
[1728247928778,0.06229911,2441.7,2441.6,1.72162721]
[1728247928955,6.27627,2441.8,2441.6,1.72162721]
[1728247929157,0.06243062,2441.7,2441.6,1.72162721]
[1728247929355,6.27627,2441.8,2441.6,1.72162721]
[1728247929555,0.06243062,2441.7,2441.6,1.72162721]
[1728247929773,6.27627,2441.8,2441.6,1.72162721]
[1728247929957,0.0623054,2441.7,2441.6,1.72162721]
[1728247930157,6.27627,2441.8,2441.6,1.72162721]
[1728247930364,0.06233671,2441.7,2441.6,1.72162721]
[1728247930575,6.27627,2441.8,2441.6,1.72162721]
[1728247930887,0.06213652,2441.7,2441.6,1.72162721]
[1728247931179,6.27627,2441.8,2441.6,1.72162721]
[1728247931382,0.06239932,2441.7,2441.6,1.72162721]
[1728247931948,6.27627,2441.8,2441.6,1.72162721]
[1728247932287,0.0603372,2441.7,2441.6,1.72162721]
[1728247932660,7.73568909,2441.8,2441.6,1.72162721]
[1728247932862,0.0603685,2441.7,2441.6,1.72162721]
[1728247933179,7.73568909,2441.8,2441.6,1.72162721]
[1728247933479,0.0603685,2441.7,2441.6,1.72162721]
[1728247933848,7.73568909,2441.8,2441.6,1.72162721]
[1728247934051,0.0603685,2441.7,2441.6,1.72162721]
[1728247934462,7.73568909,2441.8,2441.6,1.72162721]
[1728247934748,0.0603685,2441.7,2441.6,1.72162721]
[1728247935041,7.73568909,2441.8,2441.6,1.72162721]
[1728247935244,0.06024328,2441.7,2441.6,1.72162721]
[1728247935654,7.73568909,2441.8,2441.6,1.72162721]
[1728247935899,4.39698927,2441.7,2441.6,1.72162721]
[1728247940659,16.19899512,2441.7,2441.5,1.72162721]
[1728247940889,8.354855,2441.6,2441.5,1.72162721]
[1728247941161,8.41497161,2441.6,2441.5,1.72162721]
[1728247941461,3.27667,2441.5,2441.4,1.72162721]
[1728247941664,1.83892485,2441.5,2441.4,1.72162721]
[1728247941963,3.3366897,2441.5,2441.4,1.72162721]
[1728247944270,3.3366897,2441.5,2441.4,1.72094794]
[1728247948087,3.3366897,2441.5,2441.3,2.15119382]
[1728247948490,3.3366897,2441.5,2441.4,1.72095598]
[1728247950266,3.3366897,2441.5,2441.3,2.15119497]
[1728247950673,3.3366897,2441.5,2441.4,1.72091732]
[1728247950917,4.53409775,2441.5,2441.3,2.15119497]
[1728247951073,4.53409775,2441.5,2441.4,2.15119497]
[1728247951412,4.53409775,2441.5,2441.3,2.15119497]
[1728247952610,4.53409775,2441.5,2441.4,2.15119497]
[1728247952913,4.53409775,2441.5,2441.3,2.15119497]
[1728247953512,4.53409775,2441.5,2441.4,1.72093298]
[1728247953682,1.25742775,2441.5,2441.4,1.72093834]
[1728247954070,1.25742775,2441.5,2441.3,2.15119497]
[1728247954269,1.25742775,2441.5,2441.4,1.72094519]
[1728247954875,1.25742775,2441.5,2441.3,2.15119497]
[1728247955173,0.0600197,2441.5,2441.4,1.72094013]
[1728247955575,0.0600197,2441.5,2441.3,2.15119497]
[1728247955893,0.0600197,2441.5,2441.4,1.72094795]
[1728247956282,0.0600197,2441.5,2441.3,2.15119497]
[1728247956609,0.0600197,2441.5,2441.4,1.72095369]
[1728247957819,0.0600197,2441.5,2441.3,2.15119497]
[1728247958378,0.0600197,2441.5,2441.4,1.72097669]
[1728247958604,0.0600197,2441.5,2441.3,2.15119497]
[1728247958802,0.0600197,2441.5,2441.4,1.72098005]
[1728247959317,0.0600197,2441.5,2441.3,2.15119497]
[1728247959499,0.0600197,2441.5,2441.4,1.72098867]
[1728247959683,0.0600197,2441.5,2441.3,2.15119497]
[1728247959884,0.0600197,2441.5,2441.4,2.90639497]
[1728247960493,3.7992,2441.7,2441.4,2.90639497]
[1728247960700,0.06008005,2441.5,2441.4,2.90639497]
[1728247960904,7.07565,2441.7,2441.4,2.90639497]
[1728247961101,0.06008005,2441.5,2441.4,2.90639497]
[1728247961431,0.06008005,2441.5,2441.4,2.15119497]
[1728247961586,7.07565,2441.7,2441.4,2.15119497]